{"text_format":"1","workbook":"xlsx","n_sheets":26,"sheets":["Meldeliste","R 1","R 2","R 3","R 4","R 5","R 6","Ergebnis","DB","RName","RName2","Optionen","Var","Gesamtrang","T 1","T 2","T 3","T 4","T 5","T 6","T 7","T 8","T 9","T 10","T 11","T 12"],"not_rendered":{"charts":0,"images":2,"macros":1,"external_links":0,"defined_names":12,"comments":2,"pivot_tables":0},"unopened":[],"bounds":{"document_bytes":16777216,"sheet_cells":100000,"rows_first":2000,"rows_last":500,"rows_between":2000,"halvings":0,"cell_chars":16384,"cell_head_chars":4096},"cells_cut":0,"cells_raw":0,"read":"whole","date_system":"1900"}

{"sheet":"Meldeliste","index":0,"n_rows":257,"n_cols":15,"rows_kept":257,"cut":false,"hidden":false,"merged":[[0,13,0,14]]}
["Team","Name A","Vorname A",null,"Name B","Vorname B",null,"Name C","Vorname C",null,"Ort / Verein","weg (X)"]
[1,null,null,null,null,null,null,null,null,null,null,null,null,111,"Gabe, Andreas"]
[2]
[3]
[4]
[5]
[6]
[7]
[8]
[9]
[10]
[11]
[12]
[13]
[14]
[15]
[16]
[17]
[18]
[19]
[20]
[21]
[22]
[23]
[24]
[25]
[26]
[27]
[28]
[29]
[30]
[31]
[32]
[33]
[34]
[35]
[36]
[37]
[38]
[39]
[40]
[41]
[42]
[43]
[44]
[45]
[46]
[47]
[48]
[49]
[50]
[51]
[52]
[53]
[54]
[55]
[56]
[57]
[58]
[59]
[60]
[61]
[62]
[63]
[64]
[65]
[66]
[67]
[68]
[69]
[70]
[71]
[72]
[73]
[74]
[75]
[76]
[77]
[78]
[79]
[80]
[81]
[82]
[83]
[84]
[85]
[86]
[87]
[88]
[89]
[90]
[91]
[92]
[93]
[94]
[95]
[96]
[97]
[98]
[99]
[100]
[101]
[102]
[103]
[104]
[105]
[106]
[107]
[108]
[109]
[110]
[111]
[112]
[113]
[114]
[115]
[116]
[117]
[118]
[119]
[120]
[121]
[122]
[123]
[124]
[125]
[126]
[127]
[128]
[129]
[130]
[131]
[132]
[133]
[134]
[135]
[136]
[137]
[138]
[139]
[140]
[141]
[142]
[143]
[144]
[145]
[146]
[147]
[148]
[149]
[150]
[151]
[152]
[153]
[154]
[155]
[156]
[157]
[158]
[159]
[160]
[161]
[162]
[163]
[164]
[165]
[166]
[167]
[168]
[169]
[170]
[171]
[172]
[173]
[174]
[175]
[176]
[177]
[178]
[179]
[180]
[181]
[182]
[183]
[184]
[185]
[186]
[187]
[188]
[189]
[190]
[191]
[192]
[193]
[194]
[195]
[196]
[197]
[198]
[199]
[200]
[201]
[202]
[203]
[204]
[205]
[206]
[207]
[208]
[209]
[210]
[211]
[212]
[213]
[214]
[215]
[216]
[217]
[218]
[219]
[220]
[221]
[222]
[223]
[224]
[225]
[226]
[227]
[228]
[229]
[230]
[231]
[232]
[233]
[234]
[235]
[236]
[237]
[238]
[239]
[240]
[241]
[242]
[243]
[244]
[245]
[246]
[247]
[248]
[249]
[250]
[251]
[252]
[253]
[254]
[255]
[256]

{"sheet":"R 1","index":1,"n_rows":131,"n_cols":15,"rows_kept":131,"cut":false,"hidden":false,"merged":[[2,0,2,2],[2,8,2,10],[2,4,2,6],[0,0,0,3]]}
["QuickBoule",null,null,null,null,null,null,null,"Runde",null,1]
[]
["Teams",null,null,null,"ERGEBNIS\nTête\nA      +      A",null,null,null,"ERGEBNIS Doublette\nBC     +     BC",null,null,null,"Platz\nTête",null,"Platz\nDoubl."]
[null,"+",null,null,null,":",null,null,null,":"]
[null,"+",null,null,null,":",null,null,null,":"]
[null,"+",null,null,null,":",null,null,null,":"]
[null,"+",null,null,null,":",null,null,null,":"]
[null,"+",null,null,null,":",null,null,null,":"]
[null,"+",null,null,null,":",null,null,null,":"]
[null,"+",null,null,null,":",null,null,null,":"]
[null,"+",null,null,null,":",null,null,null,":"]
[null,"+",null,null,null,":",null,null,null,":"]
[null,"+",null,null,null,":",null,null,null,":"]
[null,"+",null,null,null,":",null,null,null,":"]
[null,"+",null,null,null,":",null,null,null,":"]
[null,"+",null,null,null,":",null,null,null,":"]
[null,"+",null,null,null,":",null,null,null,":"]
[null,"+",null,null,null,":",null,null,null,":"]
[null,"+",null,null,null,":",null,null,null,":"]
[null,"+",null,null,null,":",null,null,null,":"]
[null,"+",null,null,null,":",null,null,null,":"]
[null,"+",null,null,null,":",null,null,null,":"]
[null,"+",null,null,null,":",null,null,null,":"]
[null,"+",null,null,null,":",null,null,null,":"]
[null,"+",null,null,null,":",null,null,null,":"]
[null,"+",null,null,null,":",null,null,null,":"]
[null,"+",null,null,null,":",null,null,null,":"]
[null,"+",null,null,null,":",null,null,null,":"]
[null,"+",null,null,null,":",null,null,null,":"]
[null,"+",null,null,null,":",null,null,null,":"]
[null,"+",null,null,null,":",null,null,null,":"]
[null,"+",null,null,null,":",null,null,null,":"]
[null,"+",null,null,null,":",null,null,null,":"]
[null,"+",null,null,null,":",null,null,null,":"]
[null,"+",null,null,null,":",null,null,null,":"]
[null,"+",null,null,null,":",null,null,null,":"]
[null,"+",null,null,null,":",null,null,null,":"]
[null,"+",null,null,null,":",null,null,null,":"]
[null,"+",null,null,null,":",null,null,null,":"]
[null,"+",null,null,null,":",null,null,null,":"]
[null,"+",null,null,null,":",null,null,null,":"]
[null,"+",null,null,null,":",null,null,null,":"]
[null,"+",null,null,null,":",null,null,null,":"]
[null,"+",null,null,null,":",null,null,null,":"]
[null,"+",null,null,null,":",null,null,null,":"]
[null,"+",null,null,null,":",null,null,null,":"]
[null,"+",null,null,null,":",null,null,null,":"]
[null,"+",null,null,null,":",null,null,null,":"]
[null,"+",null,null,null,":",null,null,null,":"]
[null,"+",null,null,null,":",null,null,null,":"]
[null,"+",null,null,null,":",null,null,null,":"]
[null,"+",null,null,null,":",null,null,null,":"]
[null,"+",null,null,null,":",null,null,null,":"]
[null,"+",null,null,null,":",null,null,null,":"]
[null,"+",null,null,null,":",null,null,null,":"]
[null,"+",null,null,null,":",null,null,null,":"]
[null,"+",null,null,null,":",null,null,null,":"]
[null,"+",null,null,null,":",null,null,null,":"]
[null,"+",null,null,null,":",null,null,null,":"]
[null,"+",null,null,null,":",null,null,null,":"]
[null,"+",null,null,null,":",null,null,null,":"]
[null,"+",null,null,null,":",null,null,null,":"]
[null,"+",null,null,null,":",null,null,null,":"]
[null,"+",null,null,null,":",null,null,null,":"]
[null,"+",null,null,null,":",null,null,null,":"]
[null,"+",null,null,null,":",null,null,null,":"]
[null,"+",null,null,null,":",null,null,null,":"]
[null,"+",null,null,null,":",null,null,null,":"]
[null,"+",null,null,null,":",null,null,null,":"]
[null,"+",null,null,null,":",null,null,null,":"]
[null,"+",null,null,null,":",null,null,null,":"]
[null,"+",null,null,null,":",null,null,null,":"]
[null,"+",null,null,null,":",null,null,null,":"]
[null,"+",null,null,null,":",null,null,null,":"]
[null,"+",null,null,null,":",null,null,null,":"]
[null,"+",null,null,null,":",null,null,null,":"]
[null,"+",null,null,null,":",null,null,null,":"]
[null,"+",null,null,null,":",null,null,null,":"]
[null,"+",null,null,null,":",null,null,null,":"]
[null,"+",null,null,null,":",null,null,null,":"]
[null,"+",null,null,null,":",null,null,null,":"]
[null,"+",null,null,null,":",null,null,null,":"]
[null,"+",null,null,null,":",null,null,null,":"]
[null,"+",null,null,null,":",null,null,null,":"]
[null,"+",null,null,null,":",null,null,null,":"]
[null,"+",null,null,null,":",null,null,null,":"]
[null,"+",null,null,null,":",null,null,null,":"]
[null,"+",null,null,null,":",null,null,null,":"]
[null,"+",null,null,null,":",null,null,null,":"]
[null,"+",null,null,null,":",null,null,null,":"]
[null,"+",null,null,null,":",null,null,null,":"]
[null,"+",null,null,null,":",null,null,null,":"]
[null,"+",null,null,null,":",null,null,null,":"]
[null,"+",null,null,null,":",null,null,null,":"]
[null,"+",null,null,null,":",null,null,null,":"]
[null,"+",null,null,null,":",null,null,null,":"]
[null,"+",null,null,null,":",null,null,null,":"]
[null,"+",null,null,null,":",null,null,null,":"]
[null,"+",null,null,null,":",null,null,null,":"]
[null,"+",null,null,null,":",null,null,null,":"]
[null,"+",null,null,null,":",null,null,null,":"]
[null,"+",null,null,null,":",null,null,null,":"]
[null,"+",null,null,null,":",null,null,null,":"]
[null,"+",null,null,null,":",null,null,null,":"]
[null,"+",null,null,null,":",null,null,null,":"]
[null,"+",null,null,null,":",null,null,null,":"]
[null,"+",null,null,null,":",null,null,null,":"]
[null,"+",null,null,null,":",null,null,null,":"]
[null,"+",null,null,null,":",null,null,null,":"]
[null,"+",null,null,null,":",null,null,null,":"]
[null,"+",null,null,null,":",null,null,null,":"]
[null,"+",null,null,null,":",null,null,null,":"]
[null,"+",null,null,null,":",null,null,null,":"]
[null,"+",null,null,null,":",null,null,null,":"]
[null,"+",null,null,null,":",null,null,null,":"]
[null,"+",null,null,null,":",null,null,null,":"]
[null,"+",null,null,null,":",null,null,null,":"]
[null,"+",null,null,null,":",null,null,null,":"]
[null,"+",null,null,null,":",null,null,null,":"]
[null,"+",null,null,null,":",null,null,null,":"]
[null,"+",null,null,null,":",null,null,null,":"]
[null,"+",null,null,null,":",null,null,null,":"]
[null,"+",null,null,null,":",null,null,null,":"]
[null,"+",null,null,null,":",null,null,null,":"]
[null,"+",null,null,null,":",null,null,null,":"]
[null,"+",null,null,null,":",null,null,null,":"]
[null,"+",null,null,null,":",null,null,null,":"]
[null,"+",null,null,null,":",null,null,null,":"]
[null,"+",null,null,null,":",null,null,null,":"]
[null,"+",null,null,null,":",null,null,null,":"]
[null,"+",null,null,null,":",null,null,null,":"]

{"sheet":"R 2","index":2,"n_rows":131,"n_cols":15,"rows_kept":131,"cut":false,"hidden":false,"merged":[[2,0,2,2],[2,8,2,10],[2,4,2,6],[0,0,0,3]]}
["QuickBoule",null,null,null,null,null,null,null,"Runde",null,2]
[]
["Teams",null,null,null,"ERGEBNIS\nTête\nB      +      B",null,null,null,"ERGEBNIS Doublette\nAC     +     AC",null,null,null,"Platz\nTête",null,"Platz\nDoubl."]
[null,"+",null,null,null,":",null,null,null,":"]
[null,"+",null,null,null,":",null,null,null,":"]
[null,"+",null,null,null,":",null,null,null,":"]
[null,"+",null,null,null,":",null,null,null,":"]
[null,"+",null,null,null,":",null,null,null,":"]
[null,"+",null,null,null,":",null,null,null,":"]
[null,"+",null,null,null,":",null,null,null,":"]
[null,"+",null,null,null,":",null,null,null,":"]
[null,"+",null,null,null,":",null,null,null,":"]
[null,"+",null,null,null,":",null,null,null,":"]
[null,"+",null,null,null,":",null,null,null,":"]
[null,"+",null,null,null,":",null,null,null,":"]
[null,"+",null,null,null,":",null,null,null,":"]
[null,"+",null,null,null,":",null,null,null,":"]
[null,"+",null,null,null,":",null,null,null,":"]
[null,"+",null,null,null,":",null,null,null,":"]
[null,"+",null,null,null,":",null,null,null,":"]
[null,"+",null,null,null,":",null,null,null,":"]
[null,"+",null,null,null,":",null,null,null,":"]
[null,"+",null,null,null,":",null,null,null,":"]
[null,"+",null,null,null,":",null,null,null,":"]
[null,"+",null,null,null,":",null,null,null,":"]
[null,"+",null,null,null,":",null,null,null,":"]
[null,"+",null,null,null,":",null,null,null,":"]
[null,"+",null,null,null,":",null,null,null,":"]
[null,"+",null,null,null,":",null,null,null,":"]
[null,"+",null,null,null,":",null,null,null,":"]
[null,"+",null,null,null,":",null,null,null,":"]
[null,"+",null,null,null,":",null,null,null,":"]
[null,"+",null,null,null,":",null,null,null,":"]
[null,"+",null,null,null,":",null,null,null,":"]
[null,"+",null,null,null,":",null,null,null,":"]
[null,"+",null,null,null,":",null,null,null,":"]
[null,"+",null,null,null,":",null,null,null,":"]
[null,"+",null,null,null,":",null,null,null,":"]
[null,"+",null,null,null,":",null,null,null,":"]
[null,"+",null,null,null,":",null,null,null,":"]
[null,"+",null,null,null,":",null,null,null,":"]
[null,"+",null,null,null,":",null,null,null,":"]
[null,"+",null,null,null,":",null,null,null,":"]
[null,"+",null,null,null,":",null,null,null,":"]
[null,"+",null,null,null,":",null,null,null,":"]
[null,"+",null,null,null,":",null,null,null,":"]
[null,"+",null,null,null,":",null,null,null,":"]
[null,"+",null,null,null,":",null,null,null,":"]
[null,"+",null,null,null,":",null,null,null,":"]
[null,"+",null,null,null,":",null,null,null,":"]
[null,"+",null,null,null,":",null,null,null,":"]
[null,"+",null,null,null,":",null,null,null,":"]
[null,"+",null,null,null,":",null,null,null,":"]
[null,"+",null,null,null,":",null,null,null,":"]
[null,"+",null,null,null,":",null,null,null,":"]
[null,"+",null,null,null,":",null,null,null,":"]
[null,"+",null,null,null,":",null,null,null,":"]
[null,"+",null,null,null,":",null,null,null,":"]
[null,"+",null,null,null,":",null,null,null,":"]
[null,"+",null,null,null,":",null,null,null,":"]
[null,"+",null,null,null,":",null,null,null,":"]
[null,"+",null,null,null,":",null,null,null,":"]
[null,"+",null,null,null,":",null,null,null,":"]
[null,"+",null,null,null,":",null,null,null,":"]
[null,"+",null,null,null,":",null,null,null,":"]
[null,"+",null,null,null,":",null,null,null,":"]
[null,"+",null,null,null,":",null,null,null,":"]
[null,"+",null,null,null,":",null,null,null,":"]
[null,"+",null,null,null,":",null,null,null,":"]
[null,"+",null,null,null,":",null,null,null,":"]
[null,"+",null,null,null,":",null,null,null,":"]
[null,"+",null,null,null,":",null,null,null,":"]
[null,"+",null,null,null,":",null,null,null,":"]
[null,"+",null,null,null,":",null,null,null,":"]
[null,"+",null,null,null,":",null,null,null,":"]
[null,"+",null,null,null,":",null,null,null,":"]
[null,"+",null,null,null,":",null,null,null,":"]
[null,"+",null,null,null,":",null,null,null,":"]
[null,"+",null,null,null,":",null,null,null,":"]
[null,"+",null,null,null,":",null,null,null,":"]
[null,"+",null,null,null,":",null,null,null,":"]
[null,"+",null,null,null,":",null,null,null,":"]
[null,"+",null,null,null,":",null,null,null,":"]
[null,"+",null,null,null,":",null,null,null,":"]
[null,"+",null,null,null,":",null,null,null,":"]
[null,"+",null,null,null,":",null,null,null,":"]
[null,"+",null,null,null,":",null,null,null,":"]
[null,"+",null,null,null,":",null,null,null,":"]
[null,"+",null,null,null,":",null,null,null,":"]
[null,"+",null,null,null,":",null,null,null,":"]
[null,"+",null,null,null,":",null,null,null,":"]
[null,"+",null,null,null,":",null,null,null,":"]
[null,"+",null,null,null,":",null,null,null,":"]
[null,"+",null,null,null,":",null,null,null,":"]
[null,"+",null,null,null,":",null,null,null,":"]
[null,"+",null,null,null,":",null,null,null,":"]
[null,"+",null,null,null,":",null,null,null,":"]
[null,"+",null,null,null,":",null,null,null,":"]
[null,"+",null,null,null,":",null,null,null,":"]
[null,"+",null,null,null,":",null,null,null,":"]
[null,"+",null,null,null,":",null,null,null,":"]
[null,"+",null,null,null,":",null,null,null,":"]
[null,"+",null,null,null,":",null,null,null,":"]
[null,"+",null,null,null,":",null,null,null,":"]
[null,"+",null,null,null,":",null,null,null,":"]
[null,"+",null,null,null,":",null,null,null,":"]
[null,"+",null,null,null,":",null,null,null,":"]
[null,"+",null,null,null,":",null,null,null,":"]
[null,"+",null,null,null,":",null,null,null,":"]
[null,"+",null,null,null,":",null,null,null,":"]
[null,"+",null,null,null,":",null,null,null,":"]
[null,"+",null,null,null,":",null,null,null,":"]
[null,"+",null,null,null,":",null,null,null,":"]
[null,"+",null,null,null,":",null,null,null,":"]
[null,"+",null,null,null,":",null,null,null,":"]
[null,"+",null,null,null,":",null,null,null,":"]
[null,"+",null,null,null,":",null,null,null,":"]
[null,"+",null,null,null,":",null,null,null,":"]
[null,"+",null,null,null,":",null,null,null,":"]
[null,"+",null,null,null,":",null,null,null,":"]
[null,"+",null,null,null,":",null,null,null,":"]
[null,"+",null,null,null,":",null,null,null,":"]
[null,"+",null,null,null,":",null,null,null,":"]
[null,"+",null,null,null,":",null,null,null,":"]
[null,"+",null,null,null,":",null,null,null,":"]
[null,"+",null,null,null,":",null,null,null,":"]
[null,"+",null,null,null,":",null,null,null,":"]
[null,"+",null,null,null,":",null,null,null,":"]
[null,"+",null,null,null,":",null,null,null,":"]
[null,"+",null,null,null,":",null,null,null,":"]
[null,"+",null,null,null,":",null,null,null,":"]

{"sheet":"R 3","index":3,"n_rows":131,"n_cols":15,"rows_kept":131,"cut":false,"hidden":false,"merged":[[2,0,2,2],[2,8,2,10],[2,4,2,6],[0,0,0,3]]}
["QuickBoule",null,null,null,null,null,null,null,"Runde",null,3]
[]
["Teams",null,null,null,"ERGEBNIS\nTête\nC      +      C",null,null,null,"ERGEBNIS Doublette\nAB     +     AB",null,null,null,"Platz\nTête",null,"Platz\nDoubl."]
[null,"+",null,null,null,":",null,null,null,":"]
[null,"+",null,null,null,":",null,null,null,":"]
[null,"+",null,null,null,":",null,null,null,":"]
[null,"+",null,null,null,":",null,null,null,":"]
[null,"+",null,null,null,":",null,null,null,":"]
[null,"+",null,null,null,":",null,null,null,":"]
[null,"+",null,null,null,":",null,null,null,":"]
[null,"+",null,null,null,":",null,null,null,":"]
[null,"+",null,null,null,":",null,null,null,":"]
[null,"+",null,null,null,":",null,null,null,":"]
[null,"+",null,null,null,":",null,null,null,":"]
[null,"+",null,null,null,":",null,null,null,":"]
[null,"+",null,null,null,":",null,null,null,":"]
[null,"+",null,null,null,":",null,null,null,":"]
[null,"+",null,null,null,":",null,null,null,":"]
[null,"+",null,null,null,":",null,null,null,":"]
[null,"+",null,null,null,":",null,null,null,":"]
[null,"+",null,null,null,":",null,null,null,":"]
[null,"+",null,null,null,":",null,null,null,":"]
[null,"+",null,null,null,":",null,null,null,":"]
[null,"+",null,null,null,":",null,null,null,":"]
[null,"+",null,null,null,":",null,null,null,":"]
[null,"+",null,null,null,":",null,null,null,":"]
[null,"+",null,null,null,":",null,null,null,":"]
[null,"+",null,null,null,":",null,null,null,":"]
[null,"+",null,null,null,":",null,null,null,":"]
[null,"+",null,null,null,":",null,null,null,":"]
[null,"+",null,null,null,":",null,null,null,":"]
[null,"+",null,null,null,":",null,null,null,":"]
[null,"+",null,null,null,":",null,null,null,":"]
[null,"+",null,null,null,":",null,null,null,":"]
[null,"+",null,null,null,":",null,null,null,":"]
[null,"+",null,null,null,":",null,null,null,":"]
[null,"+",null,null,null,":",null,null,null,":"]
[null,"+",null,null,null,":",null,null,null,":"]
[null,"+",null,null,null,":",null,null,null,":"]
[null,"+",null,null,null,":",null,null,null,":"]
[null,"+",null,null,null,":",null,null,null,":"]
[null,"+",null,null,null,":",null,null,null,":"]
[null,"+",null,null,null,":",null,null,null,":"]
[null,"+",null,null,null,":",null,null,null,":"]
[null,"+",null,null,null,":",null,null,null,":"]
[null,"+",null,null,null,":",null,null,null,":"]
[null,"+",null,null,null,":",null,null,null,":"]
[null,"+",null,null,null,":",null,null,null,":"]
[null,"+",null,null,null,":",null,null,null,":"]
[null,"+",null,null,null,":",null,null,null,":"]
[null,"+",null,null,null,":",null,null,null,":"]
[null,"+",null,null,null,":",null,null,null,":"]
[null,"+",null,null,null,":",null,null,null,":"]
[null,"+",null,null,null,":",null,null,null,":"]
[null,"+",null,null,null,":",null,null,null,":"]
[null,"+",null,null,null,":",null,null,null,":"]
[null,"+",null,null,null,":",null,null,null,":"]
[null,"+",null,null,null,":",null,null,null,":"]
[null,"+",null,null,null,":",null,null,null,":"]
[null,"+",null,null,null,":",null,null,null,":"]
[null,"+",null,null,null,":",null,null,null,":"]
[null,"+",null,null,null,":",null,null,null,":"]
[null,"+",null,null,null,":",null,null,null,":"]
[null,"+",null,null,null,":",null,null,null,":"]
[null,"+",null,null,null,":",null,null,null,":"]
[null,"+",null,null,null,":",null,null,null,":"]
[null,"+",null,null,null,":",null,null,null,":"]
[null,"+",null,null,null,":",null,null,null,":"]
[null,"+",null,null,null,":",null,null,null,":"]
[null,"+",null,null,null,":",null,null,null,":"]
[null,"+",null,null,null,":",null,null,null,":"]
[null,"+",null,null,null,":",null,null,null,":"]
[null,"+",null,null,null,":",null,null,null,":"]
[null,"+",null,null,null,":",null,null,null,":"]
[null,"+",null,null,null,":",null,null,null,":"]
[null,"+",null,null,null,":",null,null,null,":"]
[null,"+",null,null,null,":",null,null,null,":"]
[null,"+",null,null,null,":",null,null,null,":"]
[null,"+",null,null,null,":",null,null,null,":"]
[null,"+",null,null,null,":",null,null,null,":"]
[null,"+",null,null,null,":",null,null,null,":"]
[null,"+",null,null,null,":",null,null,null,":"]
[null,"+",null,null,null,":",null,null,null,":"]
[null,"+",null,null,null,":",null,null,null,":"]
[null,"+",null,null,null,":",null,null,null,":"]
[null,"+",null,null,null,":",null,null,null,":"]
[null,"+",null,null,null,":",null,null,null,":"]
[null,"+",null,null,null,":",null,null,null,":"]
[null,"+",null,null,null,":",null,null,null,":"]
[null,"+",null,null,null,":",null,null,null,":"]
[null,"+",null,null,null,":",null,null,null,":"]
[null,"+",null,null,null,":",null,null,null,":"]
[null,"+",null,null,null,":",null,null,null,":"]
[null,"+",null,null,null,":",null,null,null,":"]
[null,"+",null,null,null,":",null,null,null,":"]
[null,"+",null,null,null,":",null,null,null,":"]
[null,"+",null,null,null,":",null,null,null,":"]
[null,"+",null,null,null,":",null,null,null,":"]
[null,"+",null,null,null,":",null,null,null,":"]
[null,"+",null,null,null,":",null,null,null,":"]
[null,"+",null,null,null,":",null,null,null,":"]
[null,"+",null,null,null,":",null,null,null,":"]
[null,"+",null,null,null,":",null,null,null,":"]
[null,"+",null,null,null,":",null,null,null,":"]
[null,"+",null,null,null,":",null,null,null,":"]
[null,"+",null,null,null,":",null,null,null,":"]
[null,"+",null,null,null,":",null,null,null,":"]
[null,"+",null,null,null,":",null,null,null,":"]
[null,"+",null,null,null,":",null,null,null,":"]
[null,"+",null,null,null,":",null,null,null,":"]
[null,"+",null,null,null,":",null,null,null,":"]
[null,"+",null,null,null,":",null,null,null,":"]
[null,"+",null,null,null,":",null,null,null,":"]
[null,"+",null,null,null,":",null,null,null,":"]
[null,"+",null,null,null,":",null,null,null,":"]
[null,"+",null,null,null,":",null,null,null,":"]
[null,"+",null,null,null,":",null,null,null,":"]
[null,"+",null,null,null,":",null,null,null,":"]
[null,"+",null,null,null,":",null,null,null,":"]
[null,"+",null,null,null,":",null,null,null,":"]
[null,"+",null,null,null,":",null,null,null,":"]
[null,"+",null,null,null,":",null,null,null,":"]
[null,"+",null,null,null,":",null,null,null,":"]
[null,"+",null,null,null,":",null,null,null,":"]
[null,"+",null,null,null,":",null,null,null,":"]
[null,"+",null,null,null,":",null,null,null,":"]
[null,"+",null,null,null,":",null,null,null,":"]
[null,"+",null,null,null,":",null,null,null,":"]
[null,"+",null,null,null,":",null,null,null,":"]
[null,"+",null,null,null,":",null,null,null,":"]
[null,"+",null,null,null,":",null,null,null,":"]

{"sheet":"R 4","index":4,"n_rows":131,"n_cols":11,"rows_kept":131,"cut":false,"hidden":false,"merged":[[2,0,2,2],[2,4,2,6],[0,0,0,3]]}
["QuickBoule",null,null,null,null,null,null,null,"Runde",null,4]
[]
["Teams",null,null,null,"ERGEBNIS\nTriplette\nABC   +   ABC",null,null,null,"Platz"]
[null,"+",null,null,null,":"]
[null,"+",null,null,null,":"]
[null,"+",null,null,null,":"]
[null,"+",null,null,null,":"]
[null,"+",null,null,null,":"]
[null,"+",null,null,null,":"]
[null,"+",null,null,null,":"]
[null,"+",null,null,null,":"]
[null,"+",null,null,null,":"]
[null,"+",null,null,null,":"]
[null,"+",null,null,null,":"]
[null,"+",null,null,null,":"]
[null,"+",null,null,null,":"]
[null,"+",null,null,null,":"]
[null,"+",null,null,null,":"]
[null,"+",null,null,null,":"]
[null,"+",null,null,null,":"]
[null,"+",null,null,null,":"]
[null,"+",null,null,null,":"]
[null,"+",null,null,null,":"]
[null,"+",null,null,null,":"]
[null,"+",null,null,null,":"]
[null,"+",null,null,null,":"]
[null,"+",null,null,null,":"]
[null,"+",null,null,null,":"]
[null,"+",null,null,null,":"]
[null,"+",null,null,null,":"]
[null,"+",null,null,null,":"]
[null,"+",null,null,null,":"]
[null,"+",null,null,null,":"]
[null,"+",null,null,null,":"]
[null,"+",null,null,null,":"]
[null,"+",null,null,null,":"]
[null,"+",null,null,null,":"]
[null,"+",null,null,null,":"]
[null,"+",null,null,null,":"]
[null,"+",null,null,null,":"]
[null,"+",null,null,null,":"]
[null,"+",null,null,null,":"]
[null,"+",null,null,null,":"]
[null,"+",null,null,null,":"]
[null,"+",null,null,null,":"]
[null,"+",null,null,null,":"]
[null,"+",null,null,null,":"]
[null,"+",null,null,null,":"]
[null,"+",null,null,null,":"]
[null,"+",null,null,null,":"]
[null,"+",null,null,null,":"]
[null,"+",null,null,null,":"]
[null,"+",null,null,null,":"]
[null,"+",null,null,null,":"]
[null,"+",null,null,null,":"]
[null,"+",null,null,null,":"]
[null,"+",null,null,null,":"]
[null,"+",null,null,null,":"]
[null,"+",null,null,null,":"]
[null,"+",null,null,null,":"]
[null,"+",null,null,null,":"]
[null,"+",null,null,null,":"]
[null,"+",null,null,null,":"]
[null,"+",null,null,null,":"]
[null,"+",null,null,null,":"]
[null,"+",null,null,null,":"]
[null,"+",null,null,null,":"]
[null,"+",null,null,null,":"]
[null,"+",null,null,null,":"]
[null,"+",null,null,null,":"]
[null,"+",null,null,null,":"]
[null,"+",null,null,null,":"]
[null,"+",null,null,null,":"]
[null,"+",null,null,null,":"]
[null,"+",null,null,null,":"]
[null,"+",null,null,null,":"]
[null,"+",null,null,null,":"]
[null,"+",null,null,null,":"]
[null,"+",null,null,null,":"]
[null,"+",null,null,null,":"]
[null,"+",null,null,null,":"]
[null,"+",null,null,null,":"]
[null,"+",null,null,null,":"]
[null,"+",null,null,null,":"]
[null,"+",null,null,null,":"]
[null,"+",null,null,null,":"]
[null,"+",null,null,null,":"]
[null,"+",null,null,null,":"]
[null,"+",null,null,null,":"]
[null,"+",null,null,null,":"]
[null,"+",null,null,null,":"]
[null,"+",null,null,null,":"]
[null,"+",null,null,null,":"]
[null,"+",null,null,null,":"]
[null,"+",null,null,null,":"]
[null,"+",null,null,null,":"]
[null,"+",null,null,null,":"]
[null,"+",null,null,null,":"]
[null,"+",null,null,null,":"]
[null,"+",null,null,null,":"]
[null,"+",null,null,null,":"]
[null,"+",null,null,null,":"]
[null,"+",null,null,null,":"]
[null,"+",null,null,null,":"]
[null,"+",null,null,null,":"]
[null,"+",null,null,null,":"]
[null,"+",null,null,null,":"]
[null,"+",null,null,null,":"]
[null,"+",null,null,null,":"]
[null,"+",null,null,null,":"]
[null,"+",null,null,null,":"]
[null,"+",null,null,null,":"]
[null,"+",null,null,null,":"]
[null,"+",null,null,null,":"]
[null,"+",null,null,null,":"]
[null,"+",null,null,null,":"]
[null,"+",null,null,null,":"]
[null,"+",null,null,null,":"]
[null,"+",null,null,null,":"]
[null,"+",null,null,null,":"]
[null,"+",null,null,null,":"]
[null,"+",null,null,null,":"]
[null,"+",null,null,null,":"]
[null,"+",null,null,null,":"]
[null,"+",null,null,null,":"]
[null,"+",null,null,null,":"]
[null,"+",null,null,null,":"]
[null,"+",null,null,null,":"]
[null,"+",null,null,null,":"]
[null,"+",null,null,null,":"]
[null,"+",null,null,null,":"]

{"sheet":"R 5","index":5,"n_rows":131,"n_cols":11,"rows_kept":131,"cut":false,"hidden":false,"merged":[[2,0,2,2],[2,4,2,6],[0,0,0,3]]}
["QuickBoule",null,null,null,null,null,5,null,"Runde",null,5]
[]
["Teams",null,null,null,"ERGEBNIS\nTriplette\nABC   +   ABC",null,null,null,"Platz"]
[null,"+",null,null,null,":"]
[null,"+",null,null,null,":"]
[null,"+",null,null,null,":"]
[null,"+",null,null,null,":"]
[null,"+",null,null,null,":"]
[null,"+",null,null,null,":"]
[null,"+",null,null,null,":"]
[null,"+",null,null,null,":"]
[null,"+",null,null,null,":"]
[null,"+",null,null,null,":"]
[null,"+",null,null,null,":"]
[null,"+",null,null,null,":"]
[null,"+",null,null,null,":"]
[null,"+",null,null,null,":"]
[null,"+",null,null,null,":"]
[null,"+",null,null,null,":"]
[null,"+",null,null,null,":"]
[null,"+",null,null,null,":"]
[null,"+",null,null,null,":"]
[null,"+",null,null,null,":"]
[null,"+",null,null,null,":"]
[null,"+",null,null,null,":"]
[null,"+",null,null,null,":"]
[null,"+",null,null,null,":"]
[null,"+",null,null,null,":"]
[null,"+",null,null,null,":"]
[null,"+",null,null,null,":"]
[null,"+",null,null,null,":"]
[null,"+",null,null,null,":"]
[null,"+",null,null,null,":"]
[null,"+",null,null,null,":"]
[null,"+",null,null,null,":"]
[null,"+",null,null,null,":"]
[null,"+",null,null,null,":"]
[null,"+",null,null,null,":"]
[null,"+",null,null,null,":"]
[null,"+",null,null,null,":"]
[null,"+",null,null,null,":"]
[null,"+",null,null,null,":"]
[null,"+",null,null,null,":"]
[null,"+",null,null,null,":"]
[null,"+",null,null,null,":"]
[null,"+",null,null,null,":"]
[null,"+",null,null,null,":"]
[null,"+",null,null,null,":"]
[null,"+",null,null,null,":"]
[null,"+",null,null,null,":"]
[null,"+",null,null,null,":"]
[null,"+",null,null,null,":"]
[null,"+",null,null,null,":"]
[null,"+",null,null,null,":"]
[null,"+",null,null,null,":"]
[null,"+",null,null,null,":"]
[null,"+",null,null,null,":"]
[null,"+",null,null,null,":"]
[null,"+",null,null,null,":"]
[null,"+",null,null,null,":"]
[null,"+",null,null,null,":"]
[null,"+",null,null,null,":"]
[null,"+",null,null,null,":"]
[null,"+",null,null,null,":"]
[null,"+",null,null,null,":"]
[null,"+",null,null,null,":"]
[null,"+",null,null,null,":"]
[null,"+",null,null,null,":"]
[null,"+",null,null,null,":"]
[null,"+",null,null,null,":"]
[null,"+",null,null,null,":"]
[null,"+",null,null,null,":"]
[null,"+",null,null,null,":"]
[null,"+",null,null,null,":"]
[null,"+",null,null,null,":"]
[null,"+",null,null,null,":"]
[null,"+",null,null,null,":"]
[null,"+",null,null,null,":"]
[null,"+",null,null,null,":"]
[null,"+",null,null,null,":"]
[null,"+",null,null,null,":"]
[null,"+",null,null,null,":"]
[null,"+",null,null,null,":"]
[null,"+",null,null,null,":"]
[null,"+",null,null,null,":"]
[null,"+",null,null,null,":"]
[null,"+",null,null,null,":"]
[null,"+",null,null,null,":"]
[null,"+",null,null,null,":"]
[null,"+",null,null,null,":"]
[null,"+",null,null,null,":"]
[null,"+",null,null,null,":"]
[null,"+",null,null,null,":"]
[null,"+",null,null,null,":"]
[null,"+",null,null,null,":"]
[null,"+",null,null,null,":"]
[null,"+",null,null,null,":"]
[null,"+",null,null,null,":"]
[null,"+",null,null,null,":"]
[null,"+",null,null,null,":"]
[null,"+",null,null,null,":"]
[null,"+",null,null,null,":"]
[null,"+",null,null,null,":"]
[null,"+",null,null,null,":"]
[null,"+",null,null,null,":"]
[null,"+",null,null,null,":"]
[null,"+",null,null,null,":"]
[null,"+",null,null,null,":"]
[null,"+",null,null,null,":"]
[null,"+",null,null,null,":"]
[null,"+",null,null,null,":"]
[null,"+",null,null,null,":"]
[null,"+",null,null,null,":"]
[null,"+",null,null,null,":"]
[null,"+",null,null,null,":"]
[null,"+",null,null,null,":"]
[null,"+",null,null,null,":"]
[null,"+",null,null,null,":"]
[null,"+",null,null,null,":"]
[null,"+",null,null,null,":"]
[null,"+",null,null,null,":"]
[null,"+",null,null,null,":"]
[null,"+",null,null,null,":"]
[null,"+",null,null,null,":"]
[null,"+",null,null,null,":"]
[null,"+",null,null,null,":"]
[null,"+",null,null,null,":"]
[null,"+",null,null,null,":"]
[null,"+",null,null,null,":"]
[null,"+",null,null,null,":"]
[null,"+",null,null,null,":"]

{"sheet":"R 6","index":6,"n_rows":131,"n_cols":11,"rows_kept":131,"cut":false,"hidden":false,"merged":[[2,4,2,6],[2,0,2,2],[0,0,0,3]]}
["QuickBoule",null,null,null,null,null,null,null,"Runde",null,6]
[]
["Teams",null,null,null,"ERGEBNIS\nTriplette\nABC   +   ABC",null,null,null,"Platz"]
[null,"+",null,null,null,":"]
[null,"+",null,null,null,":"]
[null,"+",null,null,null,":"]
[null,"+",null,null,null,":"]
[null,"+",null,null,null,":"]
[null,"+",null,null,null,":"]
[null,"+",null,null,null,":"]
[null,"+",null,null,null,":"]
[null,"+",null,null,null,":"]
[null,"+",null,null,null,":"]
[null,"+",null,null,null,":"]
[null,"+",null,null,null,":"]
[null,"+",null,null,null,":"]
[null,"+",null,null,null,":"]
[null,"+",null,null,null,":"]
[null,"+",null,null,null,":"]
[null,"+",null,null,null,":"]
[null,"+",null,null,null,":"]
[null,"+",null,null,null,":"]
[null,"+",null,null,null,":"]
[null,"+",null,null,null,":"]
[null,"+",null,null,null,":"]
[null,"+",null,null,null,":"]
[null,"+",null,null,null,":"]
[null,"+",null,null,null,":"]
[null,"+",null,null,null,":"]
[null,"+",null,null,null,":"]
[null,"+",null,null,null,":"]
[null,"+",null,null,null,":"]
[null,"+",null,null,null,":"]
[null,"+",null,null,null,":"]
[null,"+",null,null,null,":"]
[null,"+",null,null,null,":"]
[null,"+",null,null,null,":"]
[null,"+",null,null,null,":"]
[null,"+",null,null,null,":"]
[null,"+",null,null,null,":"]
[null,"+",null,null,null,":"]
[null,"+",null,null,null,":"]
[null,"+",null,null,null,":"]
[null,"+",null,null,null,":"]
[null,"+",null,null,null,":"]
[null,"+",null,null,null,":"]
[null,"+",null,null,null,":"]
[null,"+",null,null,null,":"]
[null,"+",null,null,null,":"]
[null,"+",null,null,null,":"]
[null,"+",null,null,null,":"]
[null,"+",null,null,null,":"]
[null,"+",null,null,null,":"]
[null,"+",null,null,null,":"]
[null,"+",null,null,null,":"]
[null,"+",null,null,null,":"]
[null,"+",null,null,null,":"]
[null,"+",null,null,null,":"]
[null,"+",null,null,null,":"]
[null,"+",null,null,null,":"]
[null,"+",null,null,null,":"]
[null,"+",null,null,null,":"]
[null,"+",null,null,null,":"]
[null,"+",null,null,null,":"]
[null,"+",null,null,null,":"]
[null,"+",null,null,null,":"]
[null,"+",null,null,null,":"]
[null,"+",null,null,null,":"]
[null,"+",null,null,null,":"]
[null,"+",null,null,null,":"]
[null,"+",null,null,null,":"]
[null,"+",null,null,null,":"]
[null,"+",null,null,null,":"]
[null,"+",null,null,null,":"]
[null,"+",null,null,null,":"]
[null,"+",null,null,null,":"]
[null,"+",null,null,null,":"]
[null,"+",null,null,null,":"]
[null,"+",null,null,null,":"]
[null,"+",null,null,null,":"]
[null,"+",null,null,null,":"]
[null,"+",null,null,null,":"]
[null,"+",null,null,null,":"]
[null,"+",null,null,null,":"]
[null,"+",null,null,null,":"]
[null,"+",null,null,null,":"]
[null,"+",null,null,null,":"]
[null,"+",null,null,null,":"]
[null,"+",null,null,null,":"]
[null,"+",null,null,null,":"]
[null,"+",null,null,null,":"]
[null,"+",null,null,null,":"]
[null,"+",null,null,null,":"]
[null,"+",null,null,null,":"]
[null,"+",null,null,null,":"]
[null,"+",null,null,null,":"]
[null,"+",null,null,null,":"]
[null,"+",null,null,null,":"]
[null,"+",null,null,null,":"]
[null,"+",null,null,null,":"]
[null,"+",null,null,null,":"]
[null,"+",null,null,null,":"]
[null,"+",null,null,null,":"]
[null,"+",null,null,null,":"]
[null,"+",null,null,null,":"]
[null,"+",null,null,null,":"]
[null,"+",null,null,null,":"]
[null,"+",null,null,null,":"]
[null,"+",null,null,null,":"]
[null,"+",null,null,null,":"]
[null,"+",null,null,null,":"]
[null,"+",null,null,null,":"]
[null,"+",null,null,null,":"]
[null,"+",null,null,null,":"]
[null,"+",null,null,null,":"]
[null,"+",null,null,null,":"]
[null,"+",null,null,null,":"]
[null,"+",null,null,null,":"]
[null,"+",null,null,null,":"]
[null,"+",null,null,null,":"]
[null,"+",null,null,null,":"]
[null,"+",null,null,null,":"]
[null,"+",null,null,null,":"]
[null,"+",null,null,null,":"]
[null,"+",null,null,null,":"]
[null,"+",null,null,null,":"]
[null,"+",null,null,null,":"]
[null,"+",null,null,null,":"]
[null,"+",null,null,null,":"]
[null,"+",null,null,null,":"]
[null,"+",null,null,null,":"]

{"sheet":"Ergebnis","index":7,"n_rows":260,"n_cols":21,"rows_kept":260,"cut":false,"hidden":false,"merged":[[0,16,0,17]]}
[]
["QuickBoule"]
["DP",null,null,"                   Siegpunkte",null,null,null,null,null,null,"                 Differenzpunkte"]
["Nr","Team","weg (X)",1,2,3,4,5,6,"SP",1,2,3,4,5,6,"DP","Rang","Buchholz","Fein-\nBuchholz","DP"]
[1,null,null,null,null,null,null,null,null,{"$f":"IF(COUNT(D5:I5)=0,\"\",TEXT(SUM(D5:I5),\"0\"))","v":""},null,null,null,null,null,null,{"$f":"SUM(K5:P5)","v":0}]
[2,null,null,null,null,null,null,null,null,"",null,null,null,null,null,null,0]
[3,null,null,null,null,null,null,null,null,"",null,null,null,null,null,null,0]
[4,null,null,null,null,null,null,null,null,"",null,null,null,null,null,null,0]
[5,null,null,null,null,null,null,null,null,"",null,null,null,null,null,null,0]
[6,null,null,null,null,null,null,null,null,"",null,null,null,null,null,null,0]
[7,null,null,null,null,null,null,null,null,"",null,null,null,null,null,null,0]
[8,null,null,null,null,null,null,null,null,"",null,null,null,null,null,null,0]
[9,null,null,null,null,null,null,null,null,"",null,null,null,null,null,null,0]
[10,null,null,null,null,null,null,null,null,"",null,null,null,null,null,null,0]
[11,null,null,null,null,null,null,null,null,"",null,null,null,null,null,null,0]
[12,null,null,null,null,null,null,null,null,"",null,null,null,null,null,null,0]
[13,null,null,null,null,null,null,null,null,"",null,null,null,null,null,null,0]
[14,null,null,null,null,null,null,null,null,"",null,null,null,null,null,null,0]
[15,null,null,null,null,null,null,null,null,"",null,null,null,null,null,null,0]
[16,null,null,null,null,null,null,null,null,"",null,null,null,null,null,null,0]
[17,null,null,null,null,null,null,null,null,"",null,null,null,null,null,null,0]
[18,null,null,null,null,null,null,null,null,"",null,null,null,null,null,null,0]
[19,null,null,null,null,null,null,null,null,"",null,null,null,null,null,null,0]
[20,null,null,null,null,null,null,null,null,"",null,null,null,null,null,null,0]
[21,null,null,null,null,null,null,null,null,"",null,null,null,null,null,null,0]
[22,null,null,null,null,null,null,null,null,"",null,null,null,null,null,null,0]
[23,null,null,null,null,null,null,null,null,"",null,null,null,null,null,null,0]
[24,null,null,null,null,null,null,null,null,"",null,null,null,null,null,null,0]
[25,null,null,null,null,null,null,null,null,"",null,null,null,null,null,null,0]
[26,null,null,null,null,null,null,null,null,"",null,null,null,null,null,null,0]
[27,null,null,null,null,null,null,null,null,"",null,null,null,null,null,null,0]
[28,null,null,null,null,null,null,null,null,"",null,null,null,null,null,null,0]
[29,null,null,null,null,null,null,null,null,"",null,null,null,null,null,null,0]
[30,null,null,null,null,null,null,null,null,"",null,null,null,null,null,null,0]
[31,null,null,null,null,null,null,null,null,"",null,null,null,null,null,null,0]
[32,null,null,null,null,null,null,null,null,"",null,null,null,null,null,null,0]
[33,null,null,null,null,null,null,null,null,"",null,null,null,null,null,null,0]
[34,null,null,null,null,null,null,null,null,"",null,null,null,null,null,null,0]
[35,null,null,null,null,null,null,null,null,"",null,null,null,null,null,null,0]
[36,null,null,null,null,null,null,null,null,"",null,null,null,null,null,null,0]
[37,null,null,null,null,null,null,null,null,"",null,null,null,null,null,null,0]
[38,null,null,null,null,null,null,null,null,"",null,null,null,null,null,null,0]
[39,null,null,null,null,null,null,null,null,"",null,null,null,null,null,null,0]
[40,null,null,null,null,null,null,null,null,"",null,null,null,null,null,null,0]
[41,null,null,null,null,null,null,null,null,"",null,null,null,null,null,null,0]
[42,null,null,null,null,null,null,null,null,"",null,null,null,null,null,null,0]
[43,null,null,null,null,null,null,null,null,"",null,null,null,null,null,null,0]
[44,null,null,null,null,null,null,null,null,"",null,null,null,null,null,null,0]
[45,null,null,null,null,null,null,null,null,"",null,null,null,null,null,null,0]
[46,null,null,null,null,null,null,null,null,"",null,null,null,null,null,null,0]
[47,null,null,null,null,null,null,null,null,"",null,null,null,null,null,null,0]
[48,null,null,null,null,null,null,null,null,"",null,null,null,null,null,null,0]
[49,null,null,null,null,null,null,null,null,"",null,null,null,null,null,null,0]
[50,null,null,null,null,null,null,null,null,"",null,null,null,null,null,null,0]
[51,null,null,null,null,null,null,null,null,"",null,null,null,null,null,null,0]
[52,null,null,null,null,null,null,null,null,"",null,null,null,null,null,null,0]
[53,null,null,null,null,null,null,null,null,"",null,null,null,null,null,null,0]
[54,null,null,null,null,null,null,null,null,"",null,null,null,null,null,null,0]
[55,null,null,null,null,null,null,null,null,"",null,null,null,null,null,null,0]
[56,null,null,null,null,null,null,null,null,"",null,null,null,null,null,null,0]
[57,null,null,null,null,null,null,null,null,"",null,null,null,null,null,null,0]
[58,null,null,null,null,null,null,null,null,"",null,null,null,null,null,null,0]
[59,null,null,null,null,null,null,null,null,"",null,null,null,null,null,null,0]
[60,null,null,null,null,null,null,null,null,"",null,null,null,null,null,null,0]
[61,null,null,null,null,null,null,null,null,"",null,null,null,null,null,null,0]
[62,null,null,null,null,null,null,null,null,"",null,null,null,null,null,null,0]
[63,null,null,null,null,null,null,null,null,"",null,null,null,null,null,null,0]
[64,null,null,null,null,null,null,null,null,"",null,null,null,null,null,null,0]
[65,null,null,null,null,null,null,null,null,{"$f":"IF(COUNT(D69:I69)=0,\"\",TEXT(SUM(D69:I69),\"0\"))","v":""},null,null,null,null,null,null,{"$f":"SUM(K69:P69)","v":0}]
[66,null,null,null,null,null,null,null,null,"",null,null,null,null,null,null,0]
[67,null,null,null,null,null,null,null,null,"",null,null,null,null,null,null,0]
[68,null,null,null,null,null,null,null,null,"",null,null,null,null,null,null,0]
[69,null,null,null,null,null,null,null,null,"",null,null,null,null,null,null,0]
[70,null,null,null,null,null,null,null,null,"",null,null,null,null,null,null,0]
[71,null,null,null,null,null,null,null,null,"",null,null,null,null,null,null,0]
[72,null,null,null,null,null,null,null,null,"",null,null,null,null,null,null,0]
[73,null,null,null,null,null,null,null,null,"",null,null,null,null,null,null,0]
[74,null,null,null,null,null,null,null,null,"",null,null,null,null,null,null,0]
[75,null,null,null,null,null,null,null,null,"",null,null,null,null,null,null,0]
[76,null,null,null,null,null,null,null,null,"",null,null,null,null,null,null,0]
[77,null,null,null,null,null,null,null,null,"",null,null,null,null,null,null,0]
[78,null,null,null,null,null,null,null,null,"",null,null,null,null,null,null,0]
[79,null,null,null,null,null,null,null,null,"",null,null,null,null,null,null,0]
[80,null,null,null,null,null,null,null,null,"",null,null,null,null,null,null,0]
[81,null,null,null,null,null,null,null,null,"",null,null,null,null,null,null,0]
[82,null,null,null,null,null,null,null,null,"",null,null,null,null,null,null,0]
[83,null,null,null,null,null,null,null,null,"",null,null,null,null,null,null,0]
[84,null,null,null,null,null,null,null,null,"",null,null,null,null,null,null,0]
[85,null,null,null,null,null,null,null,null,"",null,null,null,null,null,null,0]
[86,null,null,null,null,null,null,null,null,"",null,null,null,null,null,null,0]
[87,null,null,null,null,null,null,null,null,"",null,null,null,null,null,null,0]
[88,null,null,null,null,null,null,null,null,"",null,null,null,null,null,null,0]
[89,null,null,null,null,null,null,null,null,"",null,null,null,null,null,null,0]
[90,null,null,null,null,null,null,null,null,"",null,null,null,null,null,null,0]
[91,null,null,null,null,null,null,null,null,"",null,null,null,null,null,null,0]
[92,null,null,null,null,null,null,null,null,"",null,null,null,null,null,null,0]
[93,null,null,null,null,null,null,null,null,"",null,null,null,null,null,null,0]
[94,null,null,null,null,null,null,null,null,"",null,null,null,null,null,null,0]
[95,null,null,null,null,null,null,null,null,"",null,null,null,null,null,null,0]
[96,null,null,null,null,null,null,null,null,"",null,null,null,null,null,null,0]
[97,null,null,null,null,null,null,null,null,"",null,null,null,null,null,null,0]
[98,null,null,null,null,null,null,null,null,"",null,null,null,null,null,null,0]
[99,null,null,null,null,null,null,null,null,"",null,null,null,null,null,null,0]
[100,null,null,null,null,null,null,null,null,"",null,null,null,null,null,null,0]
[101,null,null,null,null,null,null,null,null,"",null,null,null,null,null,null,0]
[102,null,null,null,null,null,null,null,null,"",null,null,null,null,null,null,0]
[103,null,null,null,null,null,null,null,null,"",null,null,null,null,null,null,0]
[104,null,null,null,null,null,null,null,null,"",null,null,null,null,null,null,0]
[105,null,null,null,null,null,null,null,null,"",null,null,null,null,null,null,0]
[106,null,null,null,null,null,null,null,null,"",null,null,null,null,null,null,0]
[107,null,null,null,null,null,null,null,null,"",null,null,null,null,null,null,0]
[108,null,null,null,null,null,null,null,null,"",null,null,null,null,null,null,0]
[109,null,null,null,null,null,null,null,null,"",null,null,null,null,null,null,0]
[110,null,null,null,null,null,null,null,null,"",null,null,null,null,null,null,0]
[111,null,null,null,null,null,null,null,null,"",null,null,null,null,null,null,0]
[112,null,null,null,null,null,null,null,null,"",null,null,null,null,null,null,0]
[113,null,null,null,null,null,null,null,null,"",null,null,null,null,null,null,0]
[114,null,null,null,null,null,null,null,null,"",null,null,null,null,null,null,0]
[115,null,null,null,null,null,null,null,null,"",null,null,null,null,null,null,0]
[116,null,null,null,null,null,null,null,null,"",null,null,null,null,null,null,0]
[117,null,null,null,null,null,null,null,null,"",null,null,null,null,null,null,0]
[118,null,null,null,null,null,null,null,null,"",null,null,null,null,null,null,0]
[119,null,null,null,null,null,null,null,null,"",null,null,null,null,null,null,0]
[120,null,null,null,null,null,null,null,null,"",null,null,null,null,null,null,0]
[121,null,null,null,null,null,null,null,null,"",null,null,null,null,null,null,0]
[122,null,null,null,null,null,null,null,null,"",null,null,null,null,null,null,0]
[123,null,null,null,null,null,null,null,null,"",null,null,null,null,null,null,0]
[124,null,null,null,null,null,null,null,null,"",null,null,null,null,null,null,0]
[125,null,null,null,null,null,null,null,null,"",null,null,null,null,null,null,0]
[126,null,null,null,null,null,null,null,null,"",null,null,null,null,null,null,0]
[127,null,null,null,null,null,null,null,null,"",null,null,null,null,null,null,0]
[128,null,null,null,null,null,null,null,null,"",null,null,null,null,null,null,0]
[129,null,null,null,null,null,null,null,null,{"$f":"IF(COUNT(D133:I133)=0,\"\",TEXT(SUM(D133:I133),\"0\"))","v":""},null,null,null,null,null,null,{"$f":"SUM(K133:P133)","v":0}]
[130,null,null,null,null,null,null,null,null,"",null,null,null,null,null,null,0]
[131,null,null,null,null,null,null,null,null,"",null,null,null,null,null,null,0]
[132,null,null,null,null,null,null,null,null,"",null,null,null,null,null,null,0]
[133,null,null,null,null,null,null,null,null,"",null,null,null,null,null,null,0]
[134,null,null,null,null,null,null,null,null,"",null,null,null,null,null,null,0]
[135,null,null,null,null,null,null,null,null,"",null,null,null,null,null,null,0]
[136,null,null,null,null,null,null,null,null,"",null,null,null,null,null,null,0]
[137,null,null,null,null,null,null,null,null,"",null,null,null,null,null,null,0]
[138,null,null,null,null,null,null,null,null,"",null,null,null,null,null,null,0]
[139,null,null,null,null,null,null,null,null,"",null,null,null,null,null,null,0]
[140,null,null,null,null,null,null,null,null,"",null,null,null,null,null,null,0]
[141,null,null,null,null,null,null,null,null,"",null,null,null,null,null,null,0]
[142,null,null,null,null,null,null,null,null,"",null,null,null,null,null,null,0]
[143,null,null,null,null,null,null,null,null,"",null,null,null,null,null,null,0]
[144,null,null,null,null,null,null,null,null,"",null,null,null,null,null,null,0]
[145,null,null,null,null,null,null,null,null,"",null,null,null,null,null,null,0]
[146,null,null,null,null,null,null,null,null,"",null,null,null,null,null,null,0]
[147,null,null,null,null,null,null,null,null,"",null,null,null,null,null,null,0]
[148,null,null,null,null,null,null,null,null,"",null,null,null,null,null,null,0]
[149,null,null,null,null,null,null,null,null,"",null,null,null,null,null,null,0]
[150,null,null,null,null,null,null,null,null,"",null,null,null,null,null,null,0]
[151,null,null,null,null,null,null,null,null,"",null,null,null,null,null,null,0]
[152,null,null,null,null,null,null,null,null,"",null,null,null,null,null,null,0]
[153,null,null,null,null,null,null,null,null,"",null,null,null,null,null,null,0]
[154,null,null,null,null,null,null,null,null,"",null,null,null,null,null,null,0]
[155,null,null,null,null,null,null,null,null,"",null,null,null,null,null,null,0]
[156,null,null,null,null,null,null,null,null,"",null,null,null,null,null,null,0]
[157,null,null,null,null,null,null,null,null,"",null,null,null,null,null,null,0]
[158,null,null,null,null,null,null,null,null,"",null,null,null,null,null,null,0]
[159,null,null,null,null,null,null,null,null,"",null,null,null,null,null,null,0]
[160,null,null,null,null,null,null,null,null,"",null,null,null,null,null,null,0]
[161,null,null,null,null,null,null,null,null,"",null,null,null,null,null,null,0]
[162,null,null,null,null,null,null,null,null,"",null,null,null,null,null,null,0]
[163,null,null,null,null,null,null,null,null,"",null,null,null,null,null,null,0]
[164,null,null,null,null,null,null,null,null,"",null,null,null,null,null,null,0]
[165,null,null,null,null,null,null,null,null,"",null,null,null,null,null,null,0]
[166,null,null,null,null,null,null,null,null,"",null,null,null,null,null,null,0]
[167,null,null,null,null,null,null,null,null,"",null,null,null,null,null,null,0]
[168,null,null,null,null,null,null,null,null,"",null,null,null,null,null,null,0]
[169,null,null,null,null,null,null,null,null,"",null,null,null,null,null,null,0]
[170,null,null,null,null,null,null,null,null,"",null,null,null,null,null,null,0]
[171,null,null,null,null,null,null,null,null,"",null,null,null,null,null,null,0]
[172,null,null,null,null,null,null,null,null,"",null,null,null,null,null,null,0]
[173,null,null,null,null,null,null,null,null,"",null,null,null,null,null,null,0]
[174,null,null,null,null,null,null,null,null,"",null,null,null,null,null,null,0]
[175,null,null,null,null,null,null,null,null,"",null,null,null,null,null,null,0]
[176,null,null,null,null,null,null,null,null,"",null,null,null,null,null,null,0]
[177,null,null,null,null,null,null,null,null,"",null,null,null,null,null,null,0]
[178,null,null,null,null,null,null,null,null,"",null,null,null,null,null,null,0]
[179,null,null,null,null,null,null,null,null,"",null,null,null,null,null,null,0]
[180,null,null,null,null,null,null,null,null,"",null,null,null,null,null,null,0]
[181,null,null,null,null,null,null,null,null,"",null,null,null,null,null,null,0]
[182,null,null,null,null,null,null,null,null,"",null,null,null,null,null,null,0]
[183,null,null,null,null,null,null,null,null,"",null,null,null,null,null,null,0]
[184,null,null,null,null,null,null,null,null,"",null,null,null,null,null,null,0]
[185,null,null,null,null,null,null,null,null,"",null,null,null,null,null,null,0]
[186,null,null,null,null,null,null,null,null,"",null,null,null,null,null,null,0]
[187,null,null,null,null,null,null,null,null,"",null,null,null,null,null,null,0]
[188,null,null,null,null,null,null,null,null,"",null,null,null,null,null,null,0]
[189,null,null,null,null,null,null,null,null,"",null,null,null,null,null,null,0]
[190,null,null,null,null,null,null,null,null,"",null,null,null,null,null,null,0]
[191,null,null,null,null,null,null,null,null,"",null,null,null,null,null,null,0]
[192,null,null,null,null,null,null,null,null,"",null,null,null,null,null,null,0]
[193,null,null,null,null,null,null,null,null,{"$f":"IF(COUNT(D197:I197)=0,\"\",TEXT(SUM(D197:I197),\"0\"))","v":""},null,null,null,null,null,null,{"$f":"SUM(K197:P197)","v":0}]
[194,null,null,null,null,null,null,null,null,"",null,null,null,null,null,null,0]
[195,null,null,null,null,null,null,null,null,"",null,null,null,null,null,null,0]
[196,null,null,null,null,null,null,null,null,"",null,null,null,null,null,null,0]
[197,null,null,null,null,null,null,null,null,"",null,null,null,null,null,null,0]
[198,null,null,null,null,null,null,null,null,"",null,null,null,null,null,null,0]
[199,null,null,null,null,null,null,null,null,"",null,null,null,null,null,null,0]
[200,null,null,null,null,null,null,null,null,"",null,null,null,null,null,null,0]
[201,null,null,null,null,null,null,null,null,"",null,null,null,null,null,null,0]
[202,null,null,null,null,null,null,null,null,"",null,null,null,null,null,null,0]
[203,null,null,null,null,null,null,null,null,"",null,null,null,null,null,null,0]
[204,null,null,null,null,null,null,null,null,"",null,null,null,null,null,null,0]
[205,null,null,null,null,null,null,null,null,"",null,null,null,null,null,null,0]
[206,null,null,null,null,null,null,null,null,"",null,null,null,null,null,null,0]
[207,null,null,null,null,null,null,null,null,"",null,null,null,null,null,null,0]
[208,null,null,null,null,null,null,null,null,"",null,null,null,null,null,null,0]
[209,null,null,null,null,null,null,null,null,"",null,null,null,null,null,null,0]
[210,null,null,null,null,null,null,null,null,"",null,null,null,null,null,null,0]
[211,null,null,null,null,null,null,null,null,"",null,null,null,null,null,null,0]
[212,null,null,null,null,null,null,null,null,"",null,null,null,null,null,null,0]
[213,null,null,null,null,null,null,null,null,"",null,null,null,null,null,null,0]
[214,null,null,null,null,null,null,null,null,"",null,null,null,null,null,null,0]
[215,null,null,null,null,null,null,null,null,"",null,null,null,null,null,null,0]
[216,null,null,null,null,null,null,null,null,"",null,null,null,null,null,null,0]
[217,null,null,null,null,null,null,null,null,"",null,null,null,null,null,null,0]
[218,null,null,null,null,null,null,null,null,"",null,null,null,null,null,null,0]
[219,null,null,null,null,null,null,null,null,"",null,null,null,null,null,null,0]
[220,null,null,null,null,null,null,null,null,"",null,null,null,null,null,null,0]
[221,null,null,null,null,null,null,null,null,"",null,null,null,null,null,null,0]
[222,null,null,null,null,null,null,null,null,"",null,null,null,null,null,null,0]
[223,null,null,null,null,null,null,null,null,"",null,null,null,null,null,null,0]
[224,null,null,null,null,null,null,null,null,"",null,null,null,null,null,null,0]
[225,null,null,null,null,null,null,null,null,"",null,null,null,null,null,null,0]
[226,null,null,null,null,null,null,null,null,"",null,null,null,null,null,null,0]
[227,null,null,null,null,null,null,null,null,"",null,null,null,null,null,null,0]
[228,null,null,null,null,null,null,null,null,"",null,null,null,null,null,null,0]
[229,null,null,null,null,null,null,null,null,"",null,null,null,null,null,null,0]
[230,null,null,null,null,null,null,null,null,"",null,null,null,null,null,null,0]
[231,null,null,null,null,null,null,null,null,"",null,null,null,null,null,null,0]
[232,null,null,null,null,null,null,null,null,"",null,null,null,null,null,null,0]
[233,null,null,null,null,null,null,null,null,"",null,null,null,null,null,null,0]
[234,null,null,null,null,null,null,null,null,"",null,null,null,null,null,null,0]
[235,null,null,null,null,null,null,null,null,"",null,null,null,null,null,null,0]
[236,null,null,null,null,null,null,null,null,"",null,null,null,null,null,null,0]
[237,null,null,null,null,null,null,null,null,"",null,null,null,null,null,null,0]
[238,null,null,null,null,null,null,null,null,"",null,null,null,null,null,null,0]
[239,null,null,null,null,null,null,null,null,"",null,null,null,null,null,null,0]
[240,null,null,null,null,null,null,null,null,"",null,null,null,null,null,null,0]
[241,null,null,null,null,null,null,null,null,"",null,null,null,null,null,null,0]
[242,null,null,null,null,null,null,null,null,"",null,null,null,null,null,null,0]
[243,null,null,null,null,null,null,null,null,"",null,null,null,null,null,null,0]
[244,null,null,null,null,null,null,null,null,"",null,null,null,null,null,null,0]
[245,null,null,null,null,null,null,null,null,"",null,null,null,null,null,null,0]
[246,null,null,null,null,null,null,null,null,"",null,null,null,null,null,null,0]
[247,null,null,null,null,null,null,null,null,"",null,null,null,null,null,null,0]
[248,null,null,null,null,null,null,null,null,"",null,null,null,null,null,null,0]
[249,null,null,null,null,null,null,null,null,"",null,null,null,null,null,null,0]
[250,null,null,null,null,null,null,null,null,"",null,null,null,null,null,null,0]
[251,null,null,null,null,null,null,null,null,"",null,null,null,null,null,null,0]
[252,null,null,null,null,null,null,null,null,"",null,null,null,null,null,null,0]
[253,null,null,null,null,null,null,null,null,"",null,null,null,null,null,null,0]
[254,null,null,null,null,null,null,null,null,"",null,null,null,null,null,null,0]
[255,null,null,null,null,null,null,null,null,"",null,null,null,null,null,null,0]
[256,null,null,null,null,null,null,null,null,"",null,null,null,null,null,null,0]

{"sheet":"DB","index":8,"n_rows":107,"n_cols":15,"rows_kept":107,"cut":false,"hidden":false,"merged":[]}
["Nachname","Vorname","Verein","Suchtext",null,null,null,null,null,null,null,null,null,106,"Datensätze"]
["Abraham","Rainer","LU-Oppau","Abraham, Rainer"]
["Agius","Christopher","Gambsheim","Agius, Christopher"]
["Ahmadzi","Rotger",null,"Ahmadzi, Rotger"]
["Bach","Ugur",null,"Bach, Ugur"]
["Baller","Dieter","BadeniaMA","Baller, Dieter"]
["Baltschukat","Christina","Worms","Baltschukat, Christina"]
["Berst","Jan","Dieburg","Berst, Jan"]
["Chedoz","Mukhtar",null,"Chedoz, Mukhtar"]
["Chini","Philipp","Pirmasens","Chini, Philipp"]
["Clodomir","Stefan","Flörsheim-Dalsheim","Clodomir, Stefan"]
["Degen","Umberto","Niederkirchen","Degen, Umberto"]
["Dengler","Gerlinde","Brühl","Dengler, Gerlinde"]
["Deubel","Petra","Tromm","Deubel, Petra"]
["Diehl","Jens","Schöntal","Diehl, Jens"]
["Diehl","Rolf","LU VSK","Diehl, Rolf"]
["Eberhardt","Steve","LU VSK","Eberhardt, Steve"]
["Eby","Gerhard Jun.","Saarwellingen","Eby, Gerhard Jun."]
["Eigenbrod","Heiko","Käfertal","Eigenbrod, Heiko"]
["Ellwanger","Nico","Saarwellingen","Ellwanger, Nico"]
["Elsbroek","Steffen","BoulettenMa","Elsbroek, Steffen"]
["Endreß","Heinz","Badenia MA","Endreß, Heinz"]
["Fallet","Renate","Bad Münster","Fallet, Renate"]
["Faseler","Carmen","Mittelbach","Faseler, Carmen"]
["Fehrenbach","Klaus","Gambsheim","Fehrenbach, Klaus"]
["Feyertag","Thiery","Bouletten-MA","Feyertag, Thiery"]
["Fischer","Bernd","BadeniaMA","Fischer, Bernd"]
["Frey","Martin","Grünstadt","Frey, Martin"]
["Gabe","Andreas","PSG-MA","Gabe, Andreas"]
["Gabski","Joachim","LU VSK","Gabski, Joachim"]
["Gerdsmeier","Helmut","Bouletten MA","Gerdsmeier, Helmut"]
["Glaser","Kurt","Niedernberg","Glaser, Kurt"]
["Graser","Matthias","Ottersheim","Graser, Matthias"]
["Gries","Leon","Herxheim","Gries, Leon"]
["Gürkan","Dino","Sandhofen","Gürkan, Dino"]
["Haage","Michael",null,"Haage, Michael"]
["Haffner","Abdullah","Pirmasens","Haffner, Abdullah"]
["Hein","Robert","Stahlbad","Hein, Robert"]
["Heissler","Jürgen","Edingen-Neckarhausen","Heissler, Jürgen"]
["Held","Peter","Hockenheim","Held, Peter"]
["Hill","Horst","PSG-MA","Hill, Horst"]
["Hinrichs","Lucas","Worms","Hinrichs, Lucas"]
["Hoffmann","Hildegard","Seeheim","Hoffmann, Hildegard"]
["Hofmann","Rainer",null,"Hofmann, Rainer"]
["Ignor","Birgit","Käfertal","Ignor, Birgit"]
["Jankowski","Volker","Viernheim","Jankowski, Volker"]
["Kalweit","Marlies","Herxheim","Kalweit, Marlies"]
["Kämmle","Rolando","Landau","Kämmle, Rolando"]
["Kauf","Ursula","LU VSK","Kauf, Ursula"]
["Keller","Andreas","BadeniaMA","Keller, Andreas"]
["Kempf","Christian","Badenia MA","Kempf, Christian"]
["Keppler","Pascal","Essingen","Keppler, Pascal"]
["Kern","Andreas","Essingen","Kern, Andreas"]
["Kind","Gerhard","Horb","Kind, Gerhard"]
["Kistner","Manuel","Brühl","Kistner, Manuel"]
["Klein","Harry","Walldorf","Klein, Harry"]
["Klein","Margot",null,"Klein, Margot"]
["Köhler","Jan","Bouletten MA","Köhler, Jan"]
["König","Ulli","Alzey","König, Ulli"]
["Lahm","Uwe","BoulettenMA","Lahm, Uwe"]
["Lange","Bernd","LU VSK","Lange, Bernd"]
["Laube","Peter","LU-Oppau","Laube, Peter"]
["Lehmann","Michel","Saarwellingen","Lehmann, Michel"]
["Leiter","Philipp","LU VSK","Leiter, Philipp"]
["Maier","Willi","LU VSK","Maier, Willi"]
["Malburg","James","TCD","Malburg, James"]
["Malena","Stefan","Bad Kreuznach","Malena, Stefan"]
["Mamik","Tobias","Viernheim","Mamik, Tobias"]
["Maurer","Giuseppe","Altrip","Maurer, Giuseppe"]
["Neumann","Beate","Käfertal","Neumann, Beate"]
["Nuss","Tobias","Mainz","Nuss, Tobias"]
["Ohlinger","Dang","Stahlbad","Ohlinger, Dang"]
["Orth","Nadine","Badenia MA","Orth, Nadine"]
["Paul","Wilko","Niedernberg","Paul, Wilko"]
["Pelikan","Daniel","Ötisheim","Pelikan, Daniel"]
["Petz","Ewald",null,"Petz, Ewald"]
["Philipps","Kurt","Käfertal","Philipps, Kurt"]
["Pister","Julian","Grünstadt","Pister, Julian"]
["Platz","Willi","Grünstadt","Platz, Willi"]
["Quaiser","Nunzio","LU VSK","Quaiser, Nunzio"]
["Quintel","Christophe","Altrip","Quintel, Christophe"]
["Radtke","Gabriele","Stahlbad","Radtke, Gabriele"]
["Reichelt","Angelo","Grünwinkel","Reichelt, Angelo"]
["Ress","Anne","Flörsheim-Dalsheim","Ress, Anne"]
["Riedel","Michael","Flörsheim-Dalsheim","Riedel, Michael"]
["Sachse","Burkhard","BFMalsch","Sachse, Burkhard"]
["Savor","Andreas","BF Malsch","Savor, Andreas"]
["Savry","Karl-Heinz","Schwetzingen","Savry, Karl-Heinz"]
["Schäfer","Jannik","BoulettenMA","Schäfer, Jannik"]
["Stein","Monika","Viernheim","Stein, Monika"]
["Stein","Philipp","BadeniaMA","Stein, Philipp"]
["Theißen","Karin","LU-Oppau","Theißen, Karin"]
["Traving","Stephanie","PSG-MA","Traving, Stephanie"]
["Trost","Jean-Luc","BadeniaMA","Trost, Jean-Luc"]
["Uhrig","Eckhard","LU VSK","Uhrig, Eckhard"]
["Vetter","Ulrike","Bouletten-MA","Vetter, Ulrike"]
["Vizani","Inge","BadeniaMA","Vizani, Inge"]
["Voigt","Silke","LU VSK","Voigt, Silke"]
["Volz","Silke","Bornheim","Volz, Silke"]
["Wagner","Enzo","Bornheim","Wagner, Enzo"]
["Weber","Dietmar","Heidelberg","Weber, Dietmar"]
["Weihe","Nadja","Sandhofen","Weihe, Nadja"]
["Yvanes","Michael","Gambsheim","Yvanes, Michael"]
["Zaremba","Daniel","TV Dauborn","Zaremba, Daniel"]
["Zelewski","Uschi","TricoloreLU","Zelewski, Uschi"]
["Zimmer","Fabrice","MA-Gartenstadt","Zimmer, Fabrice"]
["Zimmer","Reinhold","Edingen-Neckarhausen","Zimmer, Reinhold"]

{"sheet":"RName","index":9,"n_rows":132,"n_cols":15,"rows_kept":132,"cut":false,"hidden":true,"merged":[[2,0,2,2],[2,4,2,6],[2,8,2,10]]}
["QuickBoule",null,null,null,null,null,null,null,"Runde",null,1]
[]
["Teams",null,null,null,"ERGEBNIS\nTête\nA      +      A",null,null,null,"ERGEBNIS Doublette\nBC     +     BC",null,null,null,"Platz\nTête",null,"Platz\nDoubl."]
["Eberhardt, Steve / Eby, Gerhard Jun. / Eigenbrod, Heiko","+","Deubel, Petra / Diehl, Jens / Diehl, Rolf",null,null,":",null,null,null,":"]
["Berst, Jan / Chedoz, Mukhtar / Chini, Philipp","+","Ellwanger, Nico / Elsbroek, Steffen / Endreß, Heinz",null,null,":",null,null,null,":"]
["Abraham, Rainer / Agius, Christopher / Ahmadzi, Rotger","+","Clodomir, Stefan / Degen, Umberto / Dengler, Gerlinde",null,null,":",null,null,null,":"]
["Fallet, Renate / Faseler, Carmen / Fehrenbach, Klaus","+","Bach, Ugur / Baller, Dieter / Baltschukat, Christina",null,null,":",null,null,null,":"]
[null,"+",null,null,null,":",null,null,null,":"]
[null,"+",null,null,null,":",null,null,null,":"]
[null,"+",null,null,null,":",null,null,null,":"]
[null,"+",null,null,null,":",null,null,null,":"]
[null,"+",null,null,null,":",null,null,null,":"]
[null,"+",null,null,null,":",null,null,null,":"]
[null,"+",null,null,null,":",null,null,null,":"]
[null,"+",null,null,null,":",null,null,null,":"]
[null,"+",null,null,null,":",null,null,null,":"]
[null,"+",null,null,null,":",null,null,null,":"]
[null,"+",null,null,null,":",null,null,null,":"]
[null,"+",null,null,null,":",null,null,null,":"]
[null,"+",null,null,null,":",null,null,null,":"]
[null,"+",null,null,null,":",null,null,null,":"]
[null,"+",null,null,null,":",null,null,null,":"]
[null,"+",null,null,null,":",null,null,null,":"]
[null,"+",null,null,null,":",null,null,null,":"]
[null,"+",null,null,null,":",null,null,null,":"]
[null,"+",null,null,null,":",null,null,null,":"]
[null,"+",null,null,null,":",null,null,null,":"]
[null,"+",null,null,null,":",null,null,null,":"]
[null,"+",null,null,null,":",null,null,null,":"]
[null,"+",null,null,null,":",null,null,null,":"]
[null,"+",null,null,null,":",null,null,null,":"]
[null,"+",null,null,null,":",null,null,null,":"]
[null,"+",null,null,null,":",null,null,null,":"]
[null,"+",null,null,null,":",null,null,null,":"]
[null,"+",null,null,null,":",null,null,null,":"]
[null,"+",null,null,null,":",null,null,null,":"]
[null,"+",null,null,null,":",null,null,null,":"]
[null,"+",null,null,null,":",null,null,null,":"]
[null,"+",null,null,null,":",null,null,null,":"]
[null,"+",null,null,null,":",null,null,null,":"]
[null,"+",null,null,null,":",null,null,null,":"]
[null,"+",null,null,null,":",null,null,null,":"]
[null,"+",null,null,null,":",null,null,null,":"]
[null,"+",null,null,null,":",null,null,null,":"]
[null,"+",null,null,null,":",null,null,null,":"]
[null,"+",null,null,null,":",null,null,null,":"]
[null,"+",null,null,null,":",null,null,null,":"]
[null,"+",null,null,null,":",null,null,null,":"]
[null,"+",null,null,null,":",null,null,null,":"]
[null,"+",null,null,null,":",null,null,null,":"]
[null,"+",null,null,null,":",null,null,null,":"]
[null,"+",null,null,null,":",null,null,null,":"]
[null,"+",null,null,null,":",null,null,null,":"]
[null,"+",null,null,null,":",null,null,null,":"]
[null,"+",null,null,null,":",null,null,null,":"]
[null,"+",null,null,null,":",null,null,null,":"]
[null,"+",null,null,null,":",null,null,null,":"]
[null,"+",null,null,null,":",null,null,null,":"]
[null,"+",null,null,null,":",null,null,null,":"]
[null,"+",null,null,null,":",null,null,null,":"]
[null,"+",null,null,null,":",null,null,null,":"]
[null,"+",null,null,null,":",null,null,null,":"]
[null,"+",null,null,null,":",null,null,null,":"]
[null,"+",null,null,null,":",null,null,null,":"]
[null,"+",null,null,null,":",null,null,null,":"]
[null,"+",null,null,null,":",null,null,null,":"]
[null,"+",null,null,null,":",null,null,null,":"]
[null,"+",null,null,null,":",null,null,null,":"]
[null,"+",null,null,null,":",null,null,null,":"]
[null,"+",null,null,null,":",null,null,null,":"]
[null,"+",null,null,null,":",null,null,null,":"]
[null,"+",null,null,null,":",null,null,null,":"]
[null,"+",null,null,null,":",null,null,null,":"]
[null,"+",null,null,null,":",null,null,null,":"]
[null,"+",null,null,null,":",null,null,null,":"]
[null,"+",null,null,null,":",null,null,null,":"]
[null,"+",null,null,null,":",null,null,null,":"]
[null,"+",null,null,null,":",null,null,null,":"]
[null,"+",null,null,null,":",null,null,null,":"]
[null,"+",null,null,null,":",null,null,null,":"]
[null,"+",null,null,null,":",null,null,null,":"]
[null,"+",null,null,null,":",null,null,null,":"]
[null,"+",null,null,null,":",null,null,null,":"]
[null,"+",null,null,null,":",null,null,null,":"]
[null,"+",null,null,null,":",null,null,null,":"]
[null,"+",null,null,null,":",null,null,null,":"]
[null,"+",null,null,null,":",null,null,null,":"]
[null,"+",null,null,null,":",null,null,null,":"]
[null,"+",null,null,null,":",null,null,null,":"]
[null,"+",null,null,null,":",null,null,null,":"]
[null,"+",null,null,null,":",null,null,null,":"]
[null,"+",null,null,null,":",null,null,null,":"]
[null,"+",null,null,null,":",null,null,null,":"]
[null,"+",null,null,null,":",null,null,null,":"]
[null,"+",null,null,null,":",null,null,null,":"]
[null,"+",null,null,null,":",null,null,null,":"]
[null,"+",null,null,null,":",null,null,null,":"]
[null,"+",null,null,null,":",null,null,null,":"]
[null,"+",null,null,null,":",null,null,null,":"]
[null,"+",null,null,null,":",null,null,null,":"]
[null,"+",null,null,null,":",null,null,null,":"]
[null,"+",null,null,null,":",null,null,null,":"]
[null,"+",null,null,null,":",null,null,null,":"]
[null,"+",null,null,null,":",null,null,null,":"]
[null,"+",null,null,null,":",null,null,null,":"]
[null,"+",null,null,null,":",null,null,null,":"]
[null,"+",null,null,null,":",null,null,null,":"]
[null,"+",null,null,null,":",null,null,null,":"]
[null,"+",null,null,null,":",null,null,null,":"]
[null,"+",null,null,null,":",null,null,null,":"]
[null,"+",null,null,null,":",null,null,null,":"]
[null,"+",null,null,null,":",null,null,null,":"]
[null,"+",null,null,null,":",null,null,null,":"]
[null,"+",null,null,null,":",null,null,null,":"]
[null,"+",null,null,null,":",null,null,null,":"]
[null,"+",null,null,null,":",null,null,null,":"]
[null,"+",null,null,null,":",null,null,null,":"]
[null,"+",null,null,null,":",null,null,null,":"]
[null,"+",null,null,null,":",null,null,null,":"]
[null,"+",null,null,null,":",null,null,null,":"]
[null,"+",null,null,null,":",null,null,null,":"]
[null,"+",null,null,null,":",null,null,null,":"]
[null,"+",null,null,null,":",null,null,null,":"]
[null,"+",null,null,null,":",null,null,null,":"]
[null,"+",null,null,null,":",null,null,null,":"]
[null,"+",null,null,null,":",null,null,null,":"]
[null,"+",null,null,null,":",null,null,null,":"]
[null,"+",null,null,null,":",null,null,null,":"]
[null,"+",null,null,null,":",null,null,null,":"]
[null,"+",null,null,null,":",null,null,null,":"]
[null,"+",null,null,null,":",null,null,null,":"]
[null,"+",null,null,null,":"]

{"sheet":"RName2","index":10,"n_rows":131,"n_cols":11,"rows_kept":131,"cut":false,"hidden":true,"merged":[[2,0,2,2],[2,4,2,6]]}
["QuickBoule",null,null,null,null,null,null,null,"Runde",null,4]
[]
["Teams",null,null,null,"ERGEBNIS\nTriplette\nABC   +   ABC",null,null,null,"Platz"]
["Fuß, Peter / Gabe, Anke / Gabel, Peter","+","Feyertag, Nico / Fischer, Steffen / Frank, Carmen",null,null,":"]
["Freyland, Etienne / Friederich, Jürgen / Fritsche, Lothar","+","Frech, Klaus / Frey, Bernd / Freyland, Chris",null,null,":"]
["Grimm, Albrecht / Gürkan, Carsta / Hatzenbühler, Sandra","+","Garcia, Christian / Georges, Stefan / Gibb, Jesko",null,null,":"]
["Gilb, Klaus / Göhr, Gerda / Gotha-Jecle, Helmut","+","Elsbroek, Hannes / Endreß, Hermann / Faseler, Heiko",null,null,":"]
[null,"+",null,null,null,":"]
[null,"+",null,null,null,":"]
[null,"+",null,null,null,":"]
[null,"+",null,null,null,":"]
[null,"+",null,null,null,":"]
[null,"+",null,null,null,":"]
[null,"+",null,null,null,":"]
[null,"+",null,null,null,":"]
[null,"+",null,null,null,":"]
[null,"+",null,null,null,":"]
[null,"+",null,null,null,":"]
[null,"+",null,null,null,":"]
[null,"+",null,null,null,":"]
[null,"+",null,null,null,":"]
[null,"+",null,null,null,":"]
[null,"+",null,null,null,":"]
[null,"+",null,null,null,":"]
[null,"+",null,null,null,":"]
[null,"+",null,null,null,":"]
[null,"+",null,null,null,":"]
[null,"+",null,null,null,":"]
[null,"+",null,null,null,":"]
[null,"+",null,null,null,":"]
[null,"+",null,null,null,":"]
[null,"+",null,null,null,":"]
[null,"+",null,null,null,":"]
[null,"+",null,null,null,":"]
[null,"+",null,null,null,":"]
[null,"+",null,null,null,":"]
[null,"+",null,null,null,":"]
[null,"+",null,null,null,":"]
[null,"+",null,null,null,":"]
[null,"+",null,null,null,":"]
[null,"+",null,null,null,":"]
[null,"+",null,null,null,":"]
[null,"+",null,null,null,":"]
[null,"+",null,null,null,":"]
[null,"+",null,null,null,":"]
[null,"+",null,null,null,":"]
[null,"+",null,null,null,":"]
[null,"+",null,null,null,":"]
[null,"+",null,null,null,":"]
[null,"+",null,null,null,":"]
[null,"+",null,null,null,":"]
[null,"+",null,null,null,":"]
[null,"+",null,null,null,":"]
[null,"+",null,null,null,":"]
[null,"+",null,null,null,":"]
[null,"+",null,null,null,":"]
[null,"+",null,null,null,":"]
[null,"+",null,null,null,":"]
[null,"+",null,null,null,":"]
[null,"+",null,null,null,":"]
[null,"+",null,null,null,":"]
[null,"+",null,null,null,":"]
[null,"+",null,null,null,":"]
[null,"+",null,null,null,":"]
[null,"+",null,null,null,":"]
[null,"+",null,null,null,":"]
[null,"+",null,null,null,":"]
[null,"+",null,null,null,":"]
[null,"+",null,null,null,":"]
[null,"+",null,null,null,":"]
[null,"+",null,null,null,":"]
[null,"+",null,null,null,":"]
[null,"+",null,null,null,":"]
[null,"+",null,null,null,":"]
[null,"+",null,null,null,":"]
[null,"+",null,null,null,":"]
[null,"+",null,null,null,":"]
[null,"+",null,null,null,":"]
[null,"+",null,null,null,":"]
[null,"+",null,null,null,":"]
[null,"+",null,null,null,":"]
[null,"+",null,null,null,":"]
[null,"+",null,null,null,":"]
[null,"+",null,null,null,":"]
[null,"+",null,null,null,":"]
[null,"+",null,null,null,":"]
[null,"+",null,null,null,":"]
[null,"+",null,null,null,":"]
[null,"+",null,null,null,":"]
[null,"+",null,null,null,":"]
[null,"+",null,null,null,":"]
[null,"+",null,null,null,":"]
[null,"+",null,null,null,":"]
[null,"+",null,null,null,":"]
[null,"+",null,null,null,":"]
[null,"+",null,null,null,":"]
[null,"+",null,null,null,":"]
[null,"+",null,null,null,":"]
[null,"+",null,null,null,":"]
[null,"+",null,null,null,":"]
[null,"+",null,null,null,":"]
[null,"+",null,null,null,":"]
[null,"+",null,null,null,":"]
[null,"+",null,null,null,":"]
[null,"+",null,null,null,":"]
[null,"+",null,null,null,":"]
[null,"+",null,null,null,":"]
[null,"+",null,null,null,":"]
[null,"+",null,null,null,":"]
[null,"+",null,null,null,":"]
[null,"+",null,null,null,":"]
[null,"+",null,null,null,":"]
[null,"+",null,null,null,":"]
[null,"+",null,null,null,":"]
[null,"+",null,null,null,":"]
[null,"+",null,null,null,":"]
[null,"+",null,null,null,":"]
[null,"+",null,null,null,":"]
[null,"+",null,null,null,":"]
[null,"+",null,null,null,":"]
[null,"+",null,null,null,":"]
[null,"+",null,null,null,":"]
[null,"+",null,null,null,":"]
[null,"+",null,null,null,":"]
[null,"+",null,null,null,":"]
[null,"+",null,null,null,":"]
[null,"+",null,null,null,":"]
[null,"+",null,null,null,":"]
[null,"+",null,null,null,":"]
[null,"+",null,null,null,":"]
[null,"+",null,null,null,":"]

{"sheet":"Optionen","index":11,"n_rows":29,"n_cols":5,"rows_kept":29,"cut":false,"hidden":false,"merged":[]}
[]
[null,null,null,null,"Zurück zur Meldeliste"]
[]
[]
[null,null,null,null,"Blendet die Serienturnierregister ein bzw. aus und legt die Anzahl Turniere fest, die verwaltet werden sollen."]
[]
[]
[null,null,null,null,"Kopiert ein Register in ein ungeschütztes Excel-File, mit dem die Daten dann weiterverarbeitet werden können."]
[]
[]
[]
[]
[null,null,null,null,"Zeigt Excel-Version, QuickBoule-Version, Lizenznehmer und Lizenz-ID an."]
[]
[]
[]
[]
[null,null,null,null,"Lizensierung der Software mit Lizenzschlüssel"]
[]
[]
[]
[]
[]
["ü",null,null,null,"Wenn der Haken gesetzt ist, können die Runden im Voraus ausgelost werden. Ansonsten kann erst nach Beendigung einer Runde die nächste Runde ausgelost werden."]
[]
[]
[null,"Tête",1,null,"Siegpunkte"]
[null,"Doublette",1,null,"Siegpunkte"]
[null,"Triplette",1,null,"Siegpunkte"]

{"sheet":"Var","index":12,"n_rows":6,"n_cols":4,"rows_kept":6,"cut":false,"hidden":true,"merged":[]}
[null,null,null,0]
[]
["Var_AnzTReg",0]
["Var_Sortierfolge","DP"]
["Var_Modus",3]
["Var_TSV",false]

{"sheet":"Gesamtrang","index":13,"n_rows":2,"n_cols":7,"rows_kept":2,"cut":false,"hidden":true,"merged":[]}
[]
["Name","Siege","BH","FBH","DP","Rang","Teilnahmen"]

{"sheet":"T 1","index":14,"n_rows":1,"n_cols":8,"rows_kept":1,"cut":false,"hidden":true,"merged":[]}
["Name ","Siege","BH","FBH","DP","Ort / Verein","Turnier",1]

{"sheet":"T 2","index":15,"n_rows":1,"n_cols":8,"rows_kept":1,"cut":false,"hidden":true,"merged":[]}
["Name ","Siege","BH","FBH","DP","Ort / Verein","Turnier",2]

{"sheet":"T 3","index":16,"n_rows":1,"n_cols":8,"rows_kept":1,"cut":false,"hidden":true,"merged":[]}
["Name ","Siege","BH","FBH","DP","Ort / Verein","Turnier",3]

{"sheet":"T 4","index":17,"n_rows":1,"n_cols":8,"rows_kept":1,"cut":false,"hidden":true,"merged":[]}
["Name ","Siege","BH","FBH","DP","Ort / Verein","Turnier",4]

{"sheet":"T 5","index":18,"n_rows":1,"n_cols":8,"rows_kept":1,"cut":false,"hidden":true,"merged":[]}
["Name ","Siege","BH","FBH","DP","Ort / Verein","Turnier",5]

{"sheet":"T 6","index":19,"n_rows":1,"n_cols":8,"rows_kept":1,"cut":false,"hidden":true,"merged":[]}
["Name ","Siege","BH","FBH","DP","Ort / Verein","Turnier",6]

{"sheet":"T 7","index":20,"n_rows":1,"n_cols":8,"rows_kept":1,"cut":false,"hidden":true,"merged":[]}
["Name ","Siege","BH","FBH","DP","Ort / Verein","Turnier",7]

{"sheet":"T 8","index":21,"n_rows":1,"n_cols":8,"rows_kept":1,"cut":false,"hidden":true,"merged":[]}
["Name ","Siege","BH","FBH","DP","Ort / Verein","Turnier",8]

{"sheet":"T 9","index":22,"n_rows":1,"n_cols":8,"rows_kept":1,"cut":false,"hidden":true,"merged":[]}
["Name ","Siege","BH","FBH","DP","Ort / Verein","Turnier",9]

{"sheet":"T 10","index":23,"n_rows":1,"n_cols":8,"rows_kept":1,"cut":false,"hidden":true,"merged":[]}
["Name ","Siege","BH","FBH","DP","Ort / Verein","Turnier",10]

{"sheet":"T 11","index":24,"n_rows":1,"n_cols":8,"rows_kept":1,"cut":false,"hidden":true,"merged":[]}
["Name ","Siege","BH","FBH","DP","Ort / Verein","Turnier",11]

{"sheet":"T 12","index":25,"n_rows":1,"n_cols":8,"rows_kept":1,"cut":false,"hidden":true,"merged":[]}
["Name ","Siege","BH","FBH","DP","Ort / Verein","Turnier",12]